[Event "EIRCC 2019"]
[Site "Tallinn"]
[Date "2019.12.06"]
[Round "8.25"]
[White "Shvyrjov, Igor"]
[Black "Cerveny, Martin"]
[Result "1-0"]
[ECO "D00"]
[WhiteElo "2296"]
[BlackElo "2432"]
[Annotator "NA"]
[PlyCount "117"]
[EventDate "2019.12.05"]
[EventType "swiss"]
[EventCountry "EST"]
[SourceTitle "playchess.com"]
[Source "ChessBase"]
[SourceQuality "1"]
[TimeControl "900+10"]

1. d4 {[%emt 0:00:00]} d5 {[%emt 0:00:00]} 2. Bg5 {[%emt 0:00:02]} h6 {[%emt 0:00:03]} 3. Bh4 {[%emt 0:00:02]} c5 {[%emt 0:00:06]} 4. dxc5 {[%emt 0:00:22]} g5 {[%emt 0:00:30]} 5. Bg3 {[%emt 0:00:05]} Bg7 {[%emt 0:00:02]} 6. c3 {[%emt 0:00:21]} Nf6 {[%emt 0:00:52]} 7. Nf3 {[%emt 0:00:40]} a5 {[%emt 0:00:48]} 8. e3 {[%emt 0:00:13]} O-O {[%emt 0:00:19]} 9. Be2 {[%emt 0:02:32]} Nbd7 {[%emt 0:00:10]} 10. O-O {[%emt 0:02:06]} Nxc5 {[%emt 0:00:02]} 11. Na3 {[%emt 0:00:44]} Nfe4 {[%emt 0:01:29]} 12. Be5 {[%emt 0:00:04]} f6 {[%emt 0:00:02]} 13. Bd4 {[%emt 0:00:02]} Na6 {[%emt 0:01:13]} 14. c4 {[%emt 0:01:12]} e5 {[%emt 0:00:06]} 15. Bc3 {[%emt 0:00:01]} Nxc3 {[%emt 0:00:02]} 16. bxc3 {[%emt 0:00:02]} Be6 {[%emt 0:00:12]} 17. Rb1 {[%emt 0:00:21]} Rf7 {[%emt 0:00:53]} 18. cxd5 {[%emt 0:00:47]} Bxd5 {[%emt 0:00:43]} 19. Bc4 {[%emt 0:00:13]} Bxc4 {[%emt 0:00:16]} 20. Nxc4 {[%emt 0:00:05]} Qc7 {[%emt 0:00:23]} 21. Qb3 {[%emt 0:00:22]} Nc5 {[%emt 0:00:22]} 22. Qb5 {[%emt 0:00:12]} Bf8 {[%emt 0:00:04]} 23. Nb6 {[%emt 0:00:31]} Ra6 {[%emt 0:00:12]} 24. Nd5 {[%emt 0:00:04]} Qc6 {[%emt 0:00:12]} 25. c4 {[%emt 0:00:10]} Ne4 {[%emt 0:00:10]} 26. Rfc1 {[%emt 0:01:42]} Kg7 {[%emt 0:00:02]} 27. Qb2 {[%emt 0:00:26]} Qe6 {[%emt 0:00:20]} 28. Nd2 {[%emt 0:00:13]} Nc5 {[%emt 0:00:10]} 29. Qc2 {[%emt 0:00:39]} e4 {[%emt 0:01:02]} 30. Nb3 {[%emt 0:00:04]} Nd3 {[%emt 0:00:03]} 31. Nd4 {[%emt 0:00:03]} Qe5 {[%emt 0:00:17]} 32. Rf1 {[%emt 0:00:17]} Bc5 {[%emt 0:00:59]} 33. Qc3 {[%emt 0:01:18]} g4 {[%emt 0:00:42]} 34. Rb5 {[%emt 0:00:01]} b6 {[%emt 0:00:28]} 35. Rfb1 {[%emt 0:00:23]} h5 {[%emt 0:00:44]} 36. Ne2 {[%emt 0:00:09]} h4 {[%emt 0:00:26]} 37. g3 {[%emt 0:00:42]} Qf5 {[%emt 0:00:33]} 38. Nef4 {[%emt 0:00:07]} Bd6 {[%emt 0:00:45]} 39. Nxd3 {[%emt 0:00:12]} exd3 {[%emt 0:00:02]} 40. Nf4 {[%emt 0:00:09]} Be5 {[%emt 0:00:04]} 41. Qxd3 {[%emt 0:00:04]} Qxd3 {[%emt 0:00:12]} 42. Nxd3 {[%emt 0:00:01]} Bc7 {[%emt 0:00:04]} 43. Nf4 {[%emt 0:00:12]} Bxf4 {[%emt 0:00:07]} 44. gxf4 {[%emt 0:00:04]} Rc7 {[%emt 0:00:08]} 45. Rc1 {[%emt 0:00:18]} Kg6 {[%emt 0:00:01]} 46. f3 {[%emt 0:00:13]} gxf3 {[%emt 0:00:20]} 47. Kf2 {[%emt 0:00:00]} a4 {[%emt 0:00:13]} 48. a3 {[%emt 0:00:02]} Rc5 {[%emt 0:00:07]} 49. Kxf3 {[%emt 0:00:07]} Rxb5 {[%emt 0:00:33]} 50. cxb5 {[%emt 0:00:02]} Ra5 {[%emt 0:00:01]} 51. Rb1 {[%emt 0:00:04]} Kf5 {[%emt 0:00:02]} 52. e4+ {[%emt 0:00:10]} Ke6 {[%emt 0:00:00]} 53. Kg4 {[%emt 0:00:06]} Ra8 {[%emt 0:00:03]} 54. Rc1 {[%emt 0:00:06]} Rd8 {[%emt 0:00:19]} 55. Rc6+ {[%emt 0:00:02]} Kf7 {[%emt 0:00:01]} 56. Kf5 {[%emt 0:00:08]} Rd3 {[%emt 0:00:07]} 57. Rxb6 {[%emt 0:00:18]} Rxa3 {[%emt 0:00:02]} 58. Rb7+ {[%emt 0:00:09]} Kg8 {[%emt 0:00:01]} 59. Kg6 {[%emt 0:00:04]} 1-0

[Event "EIRCC 2019"]
[Site "Tallinn"]
[Date "2019.12.06"]
[Round "8.26"]
[White "Chukavin, Kirill"]
[Black "Mohr, Georg"]
[Result "1-0"]
[ECO "C03"]
[WhiteElo "2290"]
[BlackElo "2424"]
[Annotator "NA RC"]
[PlyCount "165"]
[EventDate "2019.12.05"]
[EventType "swiss"]
[EventCountry "EST"]
[SourceTitle "playchess.com"]
[Source "ChessBase"]
[SourceQuality "1"]
[TimeControl "900+10"]

1. e4 {[%emt 0:00:00]} e6 {[%emt 0:00:00]} 2. d4 {[%emt 0:00:00]} d5 {[%emt 0:00:00]} 3. Nd2 {[%emt 0:00:00]} Ne7 {[%emt 0:00:00]} 4. Ngf3 {[%emt 0:00:19]} g6 {[%emt 0:00:00]} 5. Bd3 {[%emt 0:00:42]} Bg7 {[%emt 0:00:00]} 6. c3 {[%emt 0:00:11]} Nd7 {[%emt 0:00:31]} 7. O-O {[%emt 0:00:25]} O-O {[%emt 0:00:02]} 8. Re1 {[%emt 0:00:44]} c5 {[%emt 0:00:05]} 9. e5 {[%emt 0:00:35]} Nc6 {[%emt 0:00:07]} 10. Nf1 {[%emt 0:00:22]} cxd4 {[%emt 0:03:25]} 11. cxd4 {[%emt 0:00:02]} f6 {[%emt 0:00:06]} 12. exf6 {[%emt 0:00:29]} Qxf6 {[%emt 0:00:01]} 13. Bg5 {[%emt 0:01:09]} Qf7 {[%emt 0:00:11]} 14. Be3 {[%emt 0:01:26]} e5 {[%emt 0:00:48]} 15. Ng5 {[%emt 0:01:29]} Qe7 {[%emt 0:00:36]} 16. Qb3 {[%emt 0:02:05]} Kh8 {[%emt 0:05:31]} 17. Qxd5 {[%emt 0:02:14]} Nb4 {[%emt 0:00:58]} 18. Qb3 {[%emt 0:00:14]} Nxd3 {[%emt 0:00:08]} 19. Qxd3 {[%emt 0:00:01]} exd4 {[%emt 0:00:13]} 20. Qxd4 {[%emt 0:01:17]} Ne5 {[%emt 0:01:55]} 21. Qh4 {[%emt 0:01:49]} h6 {[%emt 0:00:13]} 22. Bd4 {[%emt 0:00:02]} Qxg5 {[%emt 0:01:07]} 23. Qxg5 {[%emt 0:00:02]} Nf3+ {[%emt 0:00:02]} 24. gxf3 {[%emt 0:00:02]} hxg5 {[%emt 0:00:00]} 25. Bxg7+ {[%emt 0:00:06]} Kxg7 {[%emt 0:00:01]} 26. Re7+ {[%emt 0:00:13]} Kh6 {[%emt 0:01:52]} 27. Rc1 {[%emt 0:00:11]} g4 {[%emt 0:00:40]} 28. fxg4 {[%emt 0:00:51]} Bxg4 {[%emt 0:00:02]} 29. Rxb7 {[%emt 0:00:05]} Bf3 {[%emt 0:00:06]} 30. Rd7 {[%emt 0:00:24]} Rac8 {[%emt 0:00:10]} 31. Rxc8 {[%emt 0:00:56]} Rxc8 {[%emt 0:00:01]} 32. Rd3 {[%emt 0:00:02]} Be4 {[%emt 0:00:16]} 33. Rc3 {[%emt 0:00:01]} Rd8 {[%emt 0:00:07]} 34. f3 {[%emt 0:00:27]} Bb7 {[%emt 0:00:29]} 35. Kf2 {[%emt 0:00:41]} Rd1 {[%emt 0:00:16]} 36. a3 {[%emt 0:00:32]} Ba6 {[%emt 0:00:07]} 37. Ne3 {[%emt 0:00:02]} Rd2+ {[%emt 0:00:02]} 38. Kg3 {[%emt 0:00:02]} Rxb2 {[%emt 0:00:48]} 39. Ng4+ {[%emt 0:00:03]} Kg7 {[%emt 0:00:07]} 40. Rc7+ {[%emt 0:00:01]} Kf8 {[%emt 0:00:01]} 41. Rxa7 {[%emt 0:00:06]} Bc4 {[%emt 0:00:06]} 42. Ne5 {[%emt 0:00:05]} Bd5 {[%emt 0:00:12]} 43. Nxg6+ Ke8 44. Re7+ {[%emt 0:00:35]} Kd8 {[%emt 0:00:01]} 45. Re3 {[%emt 0:00:04]} Bc6 {[%emt 0:00:11]} 46. h4 {[%emt 0:00:08]} Rb1 {[%emt 0:00:02]} 47. h5 {[%emt 0:00:24]} Be8 {[%emt 0:00:03]} 48. Kg4 {[%emt 0:00:16]} Rg1+ {[%emt 0:00:10]} 49. Kf5 {[%emt 0:00:07]} Rh1 {[%emt 0:00:02]} 50. Kg5 {[%emt 0:00:02]} Rg1+ {[%emt 0:00:01]} 51. Kf6 {[%emt 0:00:14]} Rh1 {[%emt 0:00:03]} 52. Kg5 {[%emt 0:00:44]} Rg1+ {[%emt 0:00:03]} 53. Kh6 {[%emt 0:00:01]} Rg3 {[%emt 0:00:03]} 54. Kg7 {[%emt 0:00:12]} Bd7 {[%emt 0:00:04]} 55. Rd3 {[%emt 0:00:29]} Kc7 {[%emt 0:00:02]} 56. Kf6 {[%emt 0:00:05]} Rh3 {[%emt 0:00:05]} 57. Nf4 {[%emt 0:00:04]} Rh1 {[%emt 0:00:02]} 58. Rc3+ {[%emt 0:00:15]} Kd6 {[%emt 0:00:02]} 59. Rd3+ {[%emt 0:00:01]} Kc7 {[%emt 0:00:00]} 60. Nd5+ {[%emt 0:00:27]} Kc6 {[%emt 0:00:02]} 61. Nb4+ {[%emt 0:00:04]} Kc7 {[%emt 0:00:00]} 62. Na6+ {[%emt 0:00:19]} Kc8 {[%emt 0:00:01]} 63. Rc3+ {[%emt 0:00:02]} Kd8 {[%emt 0:00:01]} 64. Nc5 {[%emt 0:00:09]} Be8 {[%emt 0:00:21]} 65. Ne6+ {[%emt 0:00:17]} Kd7 {[%emt 0:00:01]} 66. Ng7 {[%emt 0:00:05]} Bxh5 {[%emt 0:00:01]} 67. Nxh5 {[%emt 0:00:06]} Rxh5 {[%emt 0:00:01]} 68. f4 {[%emt 0:00:03]} Rh1 69. f5 {[%emt 0:00:05]} Ke8 {[%emt 0:00:06]} 70. Re3+ {[%emt 0:00:13]} Kf8 {[%emt 0:00:01]} 71. Rb3 {[%emt 0:00:01]} Kg8 {[%emt 0:00:01]} 72. a4 {[%emt 0:00:27]} Ra1 {[%emt 0:00:05]} 73. Rb4 {[%emt 0:00:02]} Rc1 {[%emt 0:00:05]} 74. a5 {[%emt 0:00:09]} Rc6+ {[%emt 0:00:03]} 75. Kg5 {[%emt 0:00:11]} Ra6 {[%emt 0:00:02]} 76. Rb5 {[%emt 0:00:20]} Kf7 {[%emt 0:00:01]} 77. f6 {[%emt 0:00:07]} Ra7 {[%emt 0:00:35]} 78. Kf5 {[%emt 0:00:05]} Kg8 {[%emt 0:00:19]} 79. Kg6 {[%emt 0:00:21]} Rg7+ 80. Kf5 Ra7 {[%emt 0:00:13]} 81. Re5 {[%emt 0:00:20]} Rb7 {[%emt 0:00:36]} 82. Re8+ {[%emt 0:00:07]} Kf7 {[%emt 0:00:01]} 83. Re7+ {[%emt 0:00:01]} 1-0

[Event "EIRCC 2019"]
[Site "Tallinn"]
[Date "2019.12.06"]
[Round "8.27"]
[White "Haitin, Ilja"]
[Black "Gretarsson, Helgi Ass"]
[Result "1/2-1/2"]
[ECO "B06"]
[WhiteElo "2232"]
[BlackElo "2421"]
[Annotator "NA"]
[PlyCount "91"]
[EventDate "2019.12.05"]
[EventType "swiss"]
[EventCountry "EST"]
[SourceTitle "playchess.com"]
[Source "ChessBase"]
[SourceQuality "1"]
[TimeControl "900+10"]

1. d4 {[%emt 0:00:00]} g6 {[%emt 0:00:00]} 2. e4 {[%emt 0:00:00]} Bg7 {[%emt 0:00:00]} 3. Nf3 {[%emt 0:00:00]} d6 {[%emt 0:00:00]} 4. Nc3 {[%emt 0:00:00]} a6 {[%emt 0:00:00]} 5. a4 {[%emt 0:00:03]} b6 {[%emt 0:00:00]} 6. Bd3 {[%emt 0:00:06]} Bb7 {[%emt 0:00:00]} 7. O-O {[%emt 0:00:09]} Nd7 {[%emt 0:00:01]} 8. Qe2 {[%emt 0:00:37]} e6 {[%emt 0:00:24]} 9. Bf4 {[%emt 0:02:07]} Ne7 {[%emt 0:00:11]} 10. Rfe1 {[%emt 0:00:08]} h6 {[%emt 0:03:41]} 11. h3 {[%emt 0:00:39]} e5 {[%emt 0:00:53]} 12. dxe5 {[%emt 0:00:06]} dxe5 {[%emt 0:00:05]} 13. Be3 {[%emt 0:01:10]} Nc6 {[%emt 0:00:11]} 14. Nd5 {[%emt 0:00:27]} Nd4 {[%emt 0:00:06]} 15. Nxd4 {[%emt 0:00:19]} exd4 {[%emt 0:00:10]} 16. Bf4 {[%emt 0:03:02]} Ne5 {[%emt 0:00:30]} 17. a5 {[%emt 0:00:02]} b5 {[%emt 0:03:46]} 18. Qd2 {[%emt 0:00:01]} g5 {[%emt 0:01:32]} 19. Bg3 {[%emt 0:00:34]} O-O {[%emt 0:00:02]} 20. f4 {[%emt 0:00:57]} Bxd5 {[%emt 0:00:54]} 21. exd5 {[%emt 0:00:14]} Nxd3 {[%emt 0:00:03]} 22. cxd3 {[%emt 0:00:45]} Qxd5 {[%emt 0:00:02]} 23. fxg5 {[%emt 0:00:09]} hxg5 {[%emt 0:00:26]} 24. Bxc7 {[%emt 0:00:09]} Rfe8 {[%emt 0:00:13]} 25. Bg3 {[%emt 0:00:39]} Kh7 {[%emt 0:00:36]} 26. Rxe8 {[%emt 0:00:41]} Rxe8 {[%emt 0:00:01]} 27. Re1 {[%emt 0:00:02]} Re3 {[%emt 0:00:56]} 28. Bf2 {[%emt 0:00:14]} Rxe1+ {[%emt 0:00:02]} 29. Bxe1 {[%emt 0:00:21]} Be5 {[%emt 0:00:06]} 30. Qe2 {[%emt 0:00:32]} Kg6 {[%emt 0:00:04]} 31. h4 {[%emt 0:00:29]} Bf4 {[%emt 0:00:11]} 32. Qe8 {[%emt 0:00:52]} Be3+ {[%emt 0:00:17]} 33. Kh2 {[%emt 0:00:23]} Qf5 {[%emt 0:00:16]} 34. hxg5 {[%emt 0:02:10]} Bf4+ {[%emt 0:02:21]} 35. Bg3 {[%emt 0:00:01]} Bxg3+ {[%emt 0:00:03]} 36. Kxg3 {[%emt 0:00:00]} Qxd3+ {[%emt 0:00:01]} 37. Kh4 {[%emt 0:00:46]} Kg7 {[%emt 0:00:11]} 38. Qe5+ {[%emt 0:00:16]} Kh7 {[%emt 0:00:01]} 39. Qf4 {[%emt 0:00:14]} Qc4 {[%emt 0:00:14]} 40. Qe4+ {[%emt 0:00:52]} Kg7 {[%emt 0:00:02]} 41. Qe5+ {[%emt 0:00:04]} Kf8 {[%emt 0:00:32]} 42. Qb8+ {[%emt 0:00:09]} Kg7 {[%emt 0:00:46]} 43. Qe5+ {[%emt 0:00:01]} Kg8 {[%emt 0:00:05]} 44. Qe8+ {[%emt 0:00:06]} Kh7 {[%emt 0:00:02]} 45. Qe4+ {[%emt 0:00:02]} Kg7 {[%emt 0:00:01]} 46. Qe5+ {[%emt 0:00:00]} 1/2-1/2

[Event "EIRCC 2019"]
[Site "Tallinn"]
[Date "2019.12.06"]
[Round "8.29"]
[White "Mickevicius, Juras"]
[Black "Studer, Noel"]
[Result "1/2-1/2"]
[ECO "D26"]
[WhiteElo "2288"]
[BlackElo "2405"]
[Annotator "NA"]
[PlyCount "102"]
[EventDate "2019.12.05"]
[EventType "swiss"]
[EventCountry "EST"]
[SourceTitle "playchess.com"]
[Source "ChessBase"]
[SourceQuality "1"]
[TimeControl "900+10"]

1. d4 {[%emt 0:00:00]} d5 {[%emt 0:00:00]} 2. c4 {[%emt 0:00:00]} dxc4 {[%emt 0:00:00]} 3. Nf3 {[%emt 0:00:05]} Nf6 {[%emt 0:00:00]} 4. e3 {[%emt 0:00:00]} e6 {[%emt 0:00:00]} 5. Bxc4 {[%emt 0:00:01]} a6 {[%emt 0:00:00]} 6. O-O {[%emt 0:00:04]} c5 {[%emt 0:00:00]} 7. Bb3 {[%emt 0:00:02]} cxd4 {[%emt 0:00:00]} 8. exd4 {[%emt 0:00:05]} Nc6 {[%emt 0:00:01]} 9. Nc3 {[%emt 0:00:22]} Be7 {[%emt 0:00:02]} 10. Bg5 {[%emt 0:00:27]} O-O {[%emt 0:00:02]} 11. Re1 {[%emt 0:00:33]} Na5 {[%emt 0:04:06]} 12. Bc2 {[%emt 0:00:31]} b5 {[%emt 0:00:02]} 13. Qd3 {[%emt 0:02:42]} g6 {[%emt 0:00:01]} 14. Ne5 {[%emt 0:00:04]} Bb7 {[%emt 0:00:01]} 15. Rad1 {[%emt 0:00:05]} Rc8 {[%emt 0:01:21]} 16. Bh6 {[%emt 0:02:08]} Re8 {[%emt 0:00:10]} 17. Qe2 {[%emt 0:00:41]} Bf8 {[%emt 0:02:12]} 18. Bg5 {[%emt 0:00:29]} Nc4 {[%emt 0:00:30]} 19. Nxc4 {[%emt 0:00:46]} Rxc4 {[%emt 0:01:17]} 20. Be4 {[%emt 0:01:40]} Bxe4 {[%emt 0:01:19]} 21. Nxe4 {[%emt 0:00:01]} Be7 {[%emt 0:00:01]} 22. Bxf6 {[%emt 0:01:26]} Bxf6 {[%emt 0:00:01]} 23. d5 {[%emt 0:00:01]} Rd4 {[%emt 0:00:15]} 24. Nxf6+ {[%emt 0:00:33]} Qxf6 {[%emt 0:00:01]} 25. Rxd4 {[%emt 0:00:02]} Qxd4 {[%emt 0:00:02]} 26. Rd1 {[%emt 0:00:04]} Qb4 {[%emt 0:01:14]} 27. d6 {[%emt 0:00:14]} Rd8 {[%emt 0:00:09]} 28. a3 {[%emt 0:00:12]} Qb3 {[%emt 0:01:05]} 29. h4 {[%emt 0:00:50]} h5 {[%emt 0:01:00]} 30. g3 {[%emt 0:00:14]} Rd7 {[%emt 0:00:25]} 31. Qd2 {[%emt 0:00:14]} e5 {[%emt 0:00:13]} 32. Rc1 {[%emt 0:00:45]} Qe6 {[%emt 0:01:10]} 33. Rc6 {[%emt 0:00:02]} Kg7 {[%emt 0:00:27]} 34. Rxa6 {[%emt 0:00:06]} Qc4 {[%emt 0:00:04]} 35. Rb6 {[%emt 0:02:03]} Kf6 {[%emt 0:01:35]} 36. Qc3 {[%emt 0:00:07]} Qxc3 {[%emt 0:01:14]} 37. bxc3 {[%emt 0:00:01]} Ke6 {[%emt 0:00:05]} 38. Rxb5 {[%emt 0:00:31]} Rxd6 {[%emt 0:00:18]} 39. a4 {[%emt 0:00:01]} Rd1+ {[%emt 0:00:05]} 40. Kg2 {[%emt 0:00:01]} Rc1 {[%emt 0:00:01]} 41. Rb6+ {[%emt 0:00:35]} Ke7 {[%emt 0:00:27]} 42. Rc6 {[%emt 0:00:06]} Ra1 {[%emt 0:00:00]} 43. Rc4 {[%emt 0:00:05]} Kd6 {[%emt 0:00:01]} 44. Kf3 {[%emt 0:00:10]} Ra3 {[%emt 0:00:03]} 45. Ke4 {[%emt 0:00:16]} f5+ {[%emt 0:00:02]} 46. Kd3 {[%emt 0:00:02]} Ra2 {[%emt 0:00:22]} 47. Ke3 {[%emt 0:00:04]} Ra3 {[%emt 0:00:09]} 48. Kd3 {[%emt 0:02:02]} Ra2 {[%emt 0:00:07]} 49. Ke3 {[%emt 0:00:34]} Ra3 {[%emt 0:00:19]} 50. Kd3 {[%emt 0:00:20]} Ra2 {[%emt 0:00:03]} 51. Ke3 {[%emt 0:00:01]} Kd5 {Ke4+} 1/2-1/2

[Event "EIRCC 2019"]
[Site "Tallinn"]
[Date "2019.12.06"]
[Round "8.30"]
[White "Chibukhchyan, Erik"]
[Black "Papasimakopoulos, Alexandros"]
[Result "1-0"]
[ECO "E11"]
[WhiteElo "2211"]
[BlackElo "2399"]
[Annotator "NA"]
[PlyCount "77"]
[EventDate "2019.12.05"]
[EventType "swiss"]
[EventCountry "EST"]
[SourceTitle "playchess.com"]
[Source "ChessBase"]
[SourceQuality "1"]
[TimeControl "900+10"]

1. d4 {[%emt 0:00:00]} Nf6 {[%emt 0:00:00]} 2. c4 {[%emt 0:00:00]} e6 {[%emt 0:00:00]} 3. Nf3 Bb4+ 4. Nbd2 {[%emt 0:00:10]} b6 {[%emt 0:00:00]} 5. a3 {[%emt 0:00:02]} Bxd2+ {[%emt 0:00:00]} 6. Bxd2 {[%emt 0:00:02]} Bb7 {[%emt 0:00:00]} 7. g3 {[%emt 0:00:07]} O-O {[%emt 0:00:12]} 8. Bg2 {[%emt 0:00:02]} d6 {[%emt 0:00:04]} 9. O-O {[%emt 0:00:11]} Nbd7 {[%emt 0:00:01]} 10. b4 {[%emt 0:00:39]} Qe7 {[%emt 0:00:01]} 11. Bc3 {[%emt 0:00:10]} Be4 {[%emt 0:00:09]} 12. Re1 {[%emt 0:00:27]} d5 {[%emt 0:00:01]} 13. Qb3 {[%emt 0:01:21]} a6 {[%emt 0:01:44]} 14. a4 {[%emt 0:00:29]} c5 {[%emt 0:00:17]} 15. dxc5 {[%emt 0:01:36]} bxc5 {[%emt 0:00:02]} 16. b5 {[%emt 0:03:49]} a5 17. cxd5 {[%emt 0:01:43]} exd5 {[%emt 0:02:16]} 18. Qa3 {[%emt 0:01:04]} Rfe8 {[%emt 0:00:16]} 19. Rac1 {[%emt 0:00:12]} d4 {[%emt 0:00:07]} 20. Ba1 {[%emt 0:01:33]} Nd5 {[%emt 0:00:11]} 21. Nd2 {[%emt 0:00:48]} Bxg2 {[%emt 0:00:09]} 22. Kxg2 {[%emt 0:00:00]} Nb4 {[%emt 0:00:18]} 23. Nc4 {[%emt 0:00:28]} Nc2 {[%emt 0:00:01]} 24. Rxc2 {[%emt 0:00:15]} Qe4+ {[%emt 0:00:01]} 25. Qf3 {[%emt 0:00:00]} Qxc2 {[%emt 0:00:01]} 26. Nd6 {[%emt 0:00:01]} Ne5 {[%emt 0:01:33]} 27. Qf4 {[%emt 0:00:45]} Re7 {[%emt 0:00:08]} 28. b6 {[%emt 0:00:59]} Qxa4 {[%emt 0:00:06]} 29. b7 {[%emt 0:00:26]} Qc6+ {[%emt 0:00:10]} 30. f3 {[%emt 0:00:00]} Rb8 {[%emt 0:00:01]} 31. Nf5 {[%emt 0:01:21]} Re6 {[%emt 0:00:13]} 32. Bxd4 {[%emt 0:00:35]} cxd4 {[%emt 0:00:48]} 33. Nxd4 {[%emt 0:00:01]} Qd5 {[%emt 0:00:32]} 34. Nxe6 {[%emt 0:00:01]} fxe6 {[%emt 0:00:04]} 35. Rc1 {[%emt 0:00:09]} Qxb7 {[%emt 0:04:01]} 36. Qxe5 {[%emt 0:00:01]} Qb4 {[%emt 0:01:43]} 37. Qxe6+ {[%emt 0:00:17]} Kf8 {[%emt 0:00:15]} 38. Rc7 {[%emt 0:00:05]} Rb7 {[%emt 0:00:15]} 39. Qf7# {[%emt 0:00:02]} 1-0

[Event "EIRCC 2019"]
[Site "Tallinn"]
[Date "2019.12.06"]
[Round "8.31"]
[White "Sipila, Vilka"]
[Black "Psyk, Radoslaw"]
[Result "1-0"]
[ECO "A21"]
[WhiteElo "2380"]
[BlackElo "2178"]
[Annotator "NA"]
[PlyCount "77"]
[EventDate "2019.12.05"]
[EventType "swiss"]
[EventCountry "EST"]
[SourceTitle "playchess.com"]
[Source "ChessBase"]
[SourceQuality "1"]
[TimeControl "900+10"]

1. c4 {[%emt 0:00:00]} e5 {[%emt 0:00:00]} 2. Nc3 {[%emt 0:00:00]} Bb4 {[%emt 0:00:01]} 3. Nf3 {[%emt 0:00:07]} Bxc3 {[%emt 0:00:12]} 4. dxc3 {[%emt 0:00:07]} Nc6 {[%emt 0:00:20]} 5. g3 {[%emt 0:00:07]} d6 {[%emt 0:01:37]} 6. Bg2 {[%emt 0:00:02]} f5 {[%emt 0:00:53]} 7. O-O {[%emt 0:01:34]} Nf6 {[%emt 0:00:02]} 8. Qb3 {[%emt 0:00:10]} O-O {[%emt 0:05:14]} 9. Rd1 {[%emt 0:00:05]} h6 {[%emt 0:01:45]} 10. c5+ {[%emt 0:00:16]} d5 {[%emt 0:00:01]} 11. c4 {[%emt 0:00:02]} d4 {[%emt 0:00:33]} 12. e3 {[%emt 0:00:02]} Ne4 {[%emt 0:00:44]} 13. Qa3 {[%emt 0:00:50]} Be6 {[%emt 0:00:39]} 14. exd4 {[%emt 0:00:08]} exd4 {[%emt 0:00:13]} 15. Be3 {[%emt 0:00:03]} dxe3 {[%emt 0:00:36]} 16. Rxd8 {[%emt 0:00:03]} exf2+ {[%emt 0:00:01]} 17. Kh1 {[%emt 0:00:02]} Raxd8 {[%emt 0:00:02]} 18. b3 {[%emt 0:00:19]} Rd3 {[%emt 0:01:16]} 19. Qb2 {[%emt 0:00:08]} Rfd8 {[%emt 0:00:09]} 20. Rf1 {[%emt 0:00:49]} Rd1 {[%emt 0:02:06]} 21. Qe2 {[%emt 0:00:03]} Rxf1+ {[%emt 0:00:15]} 22. Bxf1 {[%emt 0:00:07]} Bf7 {[%emt 0:00:59]} 23. Qe3 {[%emt 0:00:16]} Bh5 {[%emt 0:00:21]} 24. Nh4 {[%emt 0:01:26]} Rd1 {[%emt 0:00:02]} 25. Kg2 {[%emt 0:00:04]} Bg4 {[%emt 0:00:05]} 26. Nxf5 {[%emt 0:04:59]} Bxf5 {[%emt 0:00:20]} 27. g4 {[%emt 0:00:03]} Bg6 {[%emt 0:00:26]} 28. h4 {[%emt 0:00:01]} Nd2 {[%emt 0:00:26]} 29. Qe6+ {[%emt 0:00:13]} Bf7 {[%emt 0:00:02]} 30. Qc8+ {[%emt 0:00:01]} Kh7 {[%emt 0:00:14]} 31. Bd3+ {[%emt 0:00:10]} g6 {[%emt 0:00:03]} 32. Kxf2 {[%emt 0:00:18]} Nxb3 {[%emt 0:00:27]} 33. Qxc7 {[%emt 0:01:07]} Kg7 {[%emt 0:00:01]} 34. Be2 {[%emt 0:00:01]} Rd2 {[%emt 0:00:12]} 35. axb3 {[%emt 0:00:04]} Nd4 {[%emt 0:00:01]} 36. Ke3 {[%emt 0:00:08]} Rxe2+ {[%emt 0:00:25]} 37. Kxd4 {[%emt 0:00:01]} Rd2+ {[%emt 0:00:06]} 38. Kc3 {[%emt 0:00:04]} Rg2 {[%emt 0:00:08]} 39. Qxb7 {[%emt 0:00:05]} 1-0

[Event "EIRCC 2019"]
[Site "Tallinn"]
[Date "2019.12.06"]
[Round "8.32"]
[White "Crevatin, Leo"]
[Black "Frischmann, Rick"]
[Result "1-0"]
[ECO "D07"]
[WhiteElo "2108"]
[BlackElo "2375"]
[Annotator "NA"]
[PlyCount "32"]
[EventDate "2019.12.05"]
[EventType "swiss"]
[EventCountry "EST"]
[SourceTitle "playchess.com"]
[Source "ChessBase"]
[SourceQuality "1"]
[TimeControl "900+10"]

1. d4 {[%emt 0:00:00]} d5 {[%emt 0:01:21]} 2. c4 {[%emt 0:00:00]} Nc6 {[%emt 0:00:00]} 3. Nc3 {[%emt 0:00:00]} Nf6 {[%emt 0:00:01]} 4. Nf3 {[%emt 0:00:00]} dxc4 {[%emt 0:00:01]} 5. Bg5 {[%emt 0:00:01]} h6 {[%emt 0:00:02]} 6. Bh4 {[%emt 0:00:10]} a6 {[%emt 0:00:01]} 7. d5 {[%emt 0:00:03]} Na5 {[%emt 0:00:31]} 8. e4 {[%emt 0:00:05]} c6 {[%emt 0:00:07]} 9. dxc6 {[%emt 0:01:50]} Qxd1+ {[%emt 0:00:56]} 10. Rxd1 {[%emt 0:00:02]} b5 {[%emt 0:00:02]} 11. Bxf6 {[%emt 0:01:32]} exf6 {[%emt 0:01:12]} 12. Nd5 {[%emt 0:00:02]} Ra7 {[%emt 0:00:23]} 13. c7 {[%emt 0:01:47]} Be7 {[%emt 0:05:46]} 14. Be2 {[%emt 0:00:48]} Be6 {[%emt 0:00:03]} 15. O-O {[%emt 0:00:10]} Bxd5 {[%emt 0:00:18]} 16. exd5 {[%emt 0:00:01]} Bd6 {[%emt 0:00:05]} 1-0